fUSD/lending_fUSD_20250609
["ID","MTS","AMOUNT","RATE_DAILY","PERIOD"]
[365102272,1749466266375,-1505.03,0.00024657,2]
[365102273,1749466266385,-359.24589811,0.00024657,2]
[365102274,1749466266396,-477.6004418,0.00024657,2]
[365102275,1749466266407,-480.0,0.00024657,2]
[365102276,1749466266417,-480.0,0.00024657,2]
[365102277,1749466266426,-480.0,0.00024657,2]
[365102278,1749466266436,-11332.05,0.00024657,2]
[365102279,1749466266446,-480.0,0.00024657,2]
[365102280,1749466266459,-480.0,0.00024657,2]
[365102281,1749466266468,-605.84,0.00024657,2]
[365102282,1749466266478,-480.0,0.00024657,2]
[365102283,1749466266487,-480.0,0.00024657,2]
[365102284,1749466266496,-1244.83,0.00024657,2]
[365102285,1749466266506,-480.0,0.00024657,2]
[365102286,1749466266516,-876.61,0.00024657,2]
[365102287,1749466266526,-479.93502283,0.00024657,2]
[365102288,1749466266535,-480.0,0.00024657,2]
[365102289,1749466266544,-480.0,0.00024657,2]
[365102290,1749466266556,-259.84338345,0.00024657,2]
[365102291,1749466266570,-3521.36,0.00024657,2]
[365102292,1749466266580,-480.0,0.00024657,2]
[365102293,1749466266589,-480.0,0.00024657,2]
[365102294,1749466266598,-665.13,0.00024657,2]
[365102295,1749466266608,-1706.49,0.00024657,2]
[365102296,1749466266618,-480.0,0.00024657,2]
[365102297,1749466266627,-337.04284714,0.00024657,2]
[365102298,1749466266636,-917.76,0.00024657,2]
[365102299,1749466266645,-550.27,0.00024657,2]
[365102300,1749466266655,-414.08390966,0.00024657,2]
[365102301,1749466266664,-480.0,0.00024657,2]
[365102302,1749466266674,-607.29,0.00024657,2]
[365102303,1749466266683,-480.0,0.00024657,2]
[365102304,1749466266693,-480.0,0.00024657,2]
[365102305,1749466266702,-480.0,0.00024657,2]
[365102306,1749466266712,-1447.01,0.00024657,2]
[365102307,1749466266721,-1374.31,0.00024657,2]
[365102308,1749466266731,-480.0,0.00024657,2]
[365102309,1749466266740,-480.0,0.00024657,2]
[365102310,1749466266749,-851.76,0.00024657,2]
[365102311,1749466266759,-480.0,0.00024657,2]
[365102312,1749466266769,-833.1,0.00024657,2]
[365102313,1749466266778,-2712.36,0.00024657,2]
[365102314,1749466266787,-1435.61,0.00024657,2]
[365102315,1749466266796,-1035.43,0.00024657,2]
[365102316,1749466266806,-480.0,0.00024657,2]
[365102317,1749466266816,-491.29,0.00024657,2]
[365102318,1749466266825,-463.51099575,0.00024657,2]
[365102319,1749466266835,-3521.17,0.00024657,2]
[365102320,1749466266844,-480.0,0.00024657,2]
[365102321,1749466266855,-480.0,0.00024657,2]
[365102322,1749466266864,-230.19507408,0.00024657,2]
[365102323,1749466266873,-480.0,0.00024657,2]
[365102324,1749466266883,-4150.23,0.00024657,2]
[365102325,1749466266892,-480.0,0.00024657,2]
[365102326,1749466266901,-480.0,0.00024657,2]
[365102327,1749466266911,-480.0,0.00024657,2]
[365102328,1749466266920,-480.0,0.00024657,2]
[365102329,1749466266930,-480.0,0.00024657,2]
[365102330,1749466266939,-1111.08,0.00024657,2]
[365102331,1749466266949,-480.0,0.00024657,2]
[365102332,1749466266959,-537.33,0.00024657,2]
[365102333,1749466266968,-1329.46,0.00024657,2]
[365102334,1749466266977,-433.8228521,0.00024657,2]
[365102335,1749466266987,-480.0,0.00024657,2]
[365102336,1749466266996,-669.48,0.00024657,2]
[365102337,1749466267007,-480.0,0.00024657,2]
[365102338,1749466267017,-471.49158313,0.00024657,2]
[365102339,1749466267026,-1918.96,0.00024657,2]
[365102340,1749466267035,-480.0,0.00024657,2]
[365102341,1749466267045,-480.0,0.00024657,2]
[365102342,1749466267054,-1000.0,0.00024657,2]
[365102343,1749466267063,-480.0,0.00024657,2]
[365102344,1749466267072,-480.0,0.00024657,2]
[365102345,1749466267081,-480.0,0.00024657,2]
[365102346,1749466267091,-2996.66,0.00024657,2]
[365102347,1749466267100,-496.22989476,0.00024657,2]
[365102348,1749466267110,-2855.94,0.00024657,2]
[365102349,1749466267120,-1342.98,0.00024657,2]
[365102350,1749466267130,-480.0,0.00024657,2]
[365102351,1749466267139,-665.9,0.00024657,2]
[365102352,1749466267148,-1287.21,0.00024657,2]
[365102353,1749466267158,-453.27306489,0.00024657,2]
[365102354,1749466267167,-480.0,0.00024657,2]
[365102355,1749466267178,-480.0,0.00024657,2]
[365102356,1749466267187,-971.68,0.00024657,2]
[365102357,1749466267198,-480.0,0.00024657,2]
[365102358,1749466267207,-476.28120796,0.00024657,2]
[365102359,1749466267216,-10695.91,0.00024657,2]
[365102360,1749466267226,-480.0,0.00024657,2]
[365102361,1749466267235,-480.0,0.00024657,2]
[365102362,1749466267244,-1248.25,0.00024657,2]
[365102363,1749466267254,-480.0,0.00024657,2]
[365102364,1749466267263,-1345.93,0.00024657,2]
[365102365,1749466267273,-495.54814177,0.00024657,2]
[365102366,1749466267282,-480.0,0.00024657,2]
[365102367,1749466267291,-440.0,0.00024657,2]
[365102368,1749466267300,-538.89237035,0.00024657,2]
[365102369,1749466267310,-480.0,0.00024657,2]
[365102370,1749466267321,-480.0,0.00024657,2]
[365102371,1749466267330,-1113.63,0.00024657,2]
[365102372,1749466267339,-468.52046706,0.00024657,2]
[365102373,1749466267348,-449.1743854,0.00024657,2]
[365102374,1749466267358,-480.0,0.00024657,2]
[365102375,1749466267367,-2867.19,0.00024657,2]
[365102376,1749466267377,-480.0,0.00024657,2]
[365102377,1749466267387,-975.17,0.00024657,2]
[365102378,1749466267397,-480.0,0.00024657,2]
[365102379,1749466267407,-449.20377793,0.00024657,2]
[365102380,1749466267416,-480.0,0.00024657,2]
[365102381,1749466267426,-400.0,0.00024657,2]
[365102382,1749466267436,-623.82,0.00024657,2]
[365102383,1749466267445,-480.0,0.00024657,2]
[365102384,1749466267455,-930.43,0.00024657,2]
[365102385,1749466267465,-480.0,0.00024657,2]
[365102386,1749466267474,-348.91077382,0.00024657,2]
[365102387,1749466267483,-1053.13,0.00024657,2]
[365102388,1749466267493,-480.0,0.00024657,2]
[365102389,1749466267502,-480.0,0.00024657,2]
[365102390,1749466267512,-1168.79,0.00024657,2]
[365102391,1749466267522,-3634.78,0.00024657,2]
[365102392,1749466267532,-440.0,0.00024657,2]
[365102393,1749466267541,-519.00415093,0.00024657,2]
[365102394,1749466267551,-544.14,0.00024657,2]
[365102395,1749466267568,-2162.95,0.00024657,2]
[365102396,1749466267577,-480.0,0.00024657,2]
[365102397,1749466267586,-469.3188391,0.00024657,2]
[365102398,1749466267596,-2972.79,0.00024657,2]
[365102399,1749466267606,-3584.42,0.00024657,2]
[365102400,1749466267615,-480.0,0.00024657,2]
[365102401,1749466267624,-809.64,0.00024657,2]
[365102402,1749466267635,-480.0,0.00024657,2]
[365102403,1749466267644,-480.0,0.00024657,2]
[365102404,1749466267653,-450.61834349,0.00024657,2]
[365102405,1749466267663,-728.18,0.00024657,2]
[365102406,1749466267673,-480.0,0.00024657,2]
[365102407,1749466267682,-480.0,0.00024657,2]
[365102408,1749466267691,-1385.91,0.00024657,2]
[365102409,1749466267701,-440.0,0.00024657,2]
[365102410,1749466267710,-480.0,0.00024657,2]
[365102411,1749466267719,-1096.99,0.00024657,2]
[365102412,1749466267729,-1473.1,0.00024657,2]
[365102413,1749466267738,-624.98,0.00024657,2]
[365102414,1749466267747,-480.0,0.00024657,2]
[365102415,1749466267756,-480.0,0.00024657,2]
[365102416,1749466267766,-8102.77,0.00024657,2]
[365102417,1749466267775,-1270.19,0.00024657,2]
[365102418,1749466267785,-479.74979819,0.00024657,2]
[365102419,1749466267794,-921.01,0.00024657,2]
[365102420,1749466267803,-742.56,0.00024657,2]
[365102421,1749466267813,-700.38,0.00024657,2]
[365102422,1749466267822,-480.0,0.00024657,2]
[365102423,1749466267831,-480.0,0.00024657,2]
[365102424,1749466267840,-480.0,0.00024657,2]
[365102425,1749466267850,-4688.74,0.00024657,2]
[365102426,1749466267859,-480.0,0.00024657,2]
[365102427,1749466267868,-1050.35,0.00024657,2]
[365102428,1749466267878,-480.0,0.00024657,2]
[365102429,1749466267887,-3444.96,0.00024657,2]
[365102430,1749466267897,-532.99500692,0.00024657,2]
[365102431,1749466267906,-798.33,0.00024657,2]
[365102432,1749466267915,-400.20194575,0.00024657,2]
[365102433,1749466267925,-480.0,0.00024657,2]
[365102434,1749466267934,-440.0,0.00024657,2]
[365102435,1749466267944,-1829.52,0.00024657,2]
[365102436,1749466267953,-480.0,0.00024657,2]
[365102437,1749466267962,-1101.27,0.00024657,2]
[365102438,1749466267972,-480.0,0.00024657,2]
[365102439,1749466267982,-1841.11,0.00024657,2]
[365102440,1749466267991,-480.0,0.00024657,2]
[365102441,1749466268000,-1376.3,0.00024657,2]
[365102442,1749466268009,-480.0,0.00024657,2]
[365102443,1749466268019,-1587.83,0.00024657,2]
[365102444,1749466268028,-480.0,0.00024657,2]
[365102445,1749466268038,-1542.9,0.00024657,2]
[365102446,1749466268047,-984.27,0.00024657,2]
[365102447,1749466268057,-342.35146621,0.00024657,2]
[365102448,1749466268066,-1621.12,0.00024657,2]
[365102449,1749466268076,-1477.46,0.00024657,2]
[365102450,1749466268085,-460.0,0.00024657,2]
[365102451,1749466268095,-480.0,0.00024657,2]
[365102452,1749466268104,-480.0,0.00024657,2]
[365102453,1749466268115,-480.0,0.00024657,2]
[365102454,1749466268124,-480.0,0.00024657,2]
[365102455,1749466268134,-460.0,0.00024657,2]
[365102456,1749466268143,-457.36890142,0.00024657,2]
[365102457,1749466268154,-392.57801755,0.00024657,2]
[365102458,1749466268164,-1359.2,0.00024657,2]
[365102459,1749466268176,-971.96,0.00024657,2]
[365102460,1749466268186,-4458.34,0.00024657,2]
[365102461,1749466268197,-1823.89,0.00024657,2]
[365102462,1749466268207,-480.0,0.00024657,2]
[365102463,1749466268217,-437.33998453,0.00024657,2]
[365102464,1749466268227,-1550.43,0.00024657,2]
[365102465,1749466268238,-1733.85,0.00024657,2]
[365102466,1749466268248,-382.84183509,0.00024657,2]
[365102467,1749466268258,-499.79,0.00024657,2]
[365102468,1749466268268,-480.0,0.00024657,2]
[365102469,1749466268278,-480.0,0.00024657,2]
[365102470,1749466268288,-1130.97,0.00024657,2]
[365102471,1749466268298,-2516.42,0.00024657,2]
[365102472,1749466268308,-480.0,0.00024657,2]
[365102473,1749466268318,-1613.59,0.00024657,2]
[365102474,1749466268328,-480.0,0.00024657,2]
[365102475,1749466268338,-2049.78,0.00024657,2]
[365102476,1749466268347,-842.09,0.00024657,2]
[365102477,1749466268359,-2014.14,0.00024657,2]
[365102478,1749466268369,-524.11,0.00024657,2]
[365102479,1749466268379,-858.21,0.00024657,2]
[365102480,1749466268389,-636.45,0.00024657,2]
[365102481,1749466268400,-749.74,0.00024657,2]
[365102482,1749466268410,-480.0,0.00024657,2]
[365102483,1749466268420,-480.0,0.00024657,2]
[365102484,1749466268430,-619.63,0.00024657,2]
[365102485,1749466268440,-480.0,0.00024657,2]
[365102486,1749466268450,-1156.28,0.00024657,2]
[365102487,1749466268462,-480.0,0.00024657,2]
[365102488,1749466268472,-480.0,0.00024657,2]
[365102489,1749466268481,-484.40155999,0.00024657,2]
[365102490,1749466268492,-480.82,0.00024657,2]
[365102491,1749466268502,-409.26851435,0.00024657,2]
[365102492,1749466268513,-304.6576333,0.00024657,2]
[365102493,1749466268688,-2181.65,0.00024657,2]
[365102494,1749466268700,-1314.95,0.00024657,2]
[365102495,1749466268711,-440.0,0.00024657,2]
[365102496,1749466268721,-435.72922742,0.00024657,2]
[365102497,1749466268731,-526.45589045,0.00024657,2]
[365102498,1749466268742,-480.0,0.00024657,2]
[365102499,1749466268752,-814.24,0.00024657,2]
[365102500,1749466268763,-480.0,0.00024657,2]
[365102501,1749466268773,-775.44,0.00024657,2]
[365102502,1749466268784,-166.21486647,0.00024657,2]
[365102503,1749466268794,-2038.4,0.00024657,2]
[365102504,1749466268804,-703.6,0.00024657,2]
[365102505,1749466268814,-462.93172348,0.00024657,2]
[365102506,1749466268824,-481.16294386,0.00024657,2]
[365102507,1749466268834,-530.15,0.00024657,2]
[365102508,1749466268843,-1959.96,0.00024657,2]
[365102509,1749466268853,-480.0,0.00024657,2]
[365102510,1749466268866,-1064.45,0.00024657,2]
[365102511,1749466268877,-480.0,0.00024657,2]
[365102512,1749466268888,-480.0,0.00024657,2]
[365102513,1749466268899,-480.0,0.00024657,2]
[365102514,1749466268909,-2187.12,0.00024657,2]
[365102515,1749466268919,-480.0,0.00024657,2]
[365102516,1749466268929,-1575.61,0.00024657,2]
[365102517,1749466268939,-365.21151448,0.00024657,2]
[365102518,1749466268950,-525.96833132,0.00024657,2]
[365102519,1749466268960,-4715.19,0.00024657,2]
[365102520,1749466268970,-1442.76,0.00024657,2]
[365102521,1749466268979,-518.91,0.00024657,2]
[365102522,1749466268990,-2734.29,0.00024657,2]
[365102523,1749466269000,-1421.17,0.00024657,2]
[365102524,1749466269011,-480.0,0.00024657,2]
[365102525,1749466269023,-1615.73,0.00024657,2]
[365102526,1749466269034,-2943.4,0.00024657,2]
[365102527,1749466269044,-407.54947825,0.00024657,2]
[365102528,1749466269054,-163.5396126,0.00024657,2]
[365102529,1749466269064,-480.0,0.00024657,2]
[365102530,1749466269074,-460.0,0.00024657,2]
[365102531,1749466269084,-480.0,0.00024657,2]
[365102532,1749466269095,-612.54,0.00024657,2]
[365102533,1749466269106,-644.73,0.00024657,2]
[365102534,1749466269118,-480.0,0.00024657,2]
[365102535,1749466269128,-480.0,0.00024657,2]
[365102536,1749466269138,-1077.03,0.00024657,2]
[365102537,1749466269148,-729.14,0.00024657,2]
[365102538,1749466269158,-571.42,0.00024657,2]
[365102539,1749466269168,-689.62,0.00024657,2]
[365102540,1749466269178,-688.45,0.00024657,2]
[365102541,1749466269188,-485.98,0.00024657,2]
[365102542,1749466269198,-788.82,0.00024657,2]
[365102543,1749466269209,-480.0,0.00024657,2]
[365102544,1749466269219,-480.0,0.00024657,2]
[365102545,1749466269230,-480.0,0.00024657,2]
[365102546,1749466269241,-480.0,0.00024657,2]
[365102547,1749466269251,-1117.4,0.00024657,2]
[365102548,1749466269261,-2047.14,0.00024657,2]
[365102549,1749466269270,-2506.81,0.00024657,2]
[365102550,1749466269280,-480.0,0.00024657,2]
[365102551,1749466269289,-1349.08,0.00024657,2]
[365102552,1749466269297,-480.0,0.00024657,2]
[365102553,1749466269307,-2560.04,0.00024657,2]
[365102554,1749466269316,-929.05,0.00024657,2]
[365102555,1749466269326,-669.9,0.00024657,2]
[365102556,1749466269335,-2290.7,0.00024657,2]
[365102557,1749466269346,-460.0,0.00024657,2]
[365102558,1749466269355,-1676.96,0.00024657,2]
[365102559,1749466269367,-480.0,0.00024657,2]
[365102560,1749466269378,-480.0,0.00024657,2]
[365102561,1749466269388,-1052.59,0.00024657,2]
[365102562,1749466269399,-1629.23,0.00024657,2]
[365102563,1749466269410,-1095.58,0.00024657,2]
[365102564,1749466269420,-480.0,0.00024657,2]
[365102565,1749466269430,-480.0,0.00024657,2]
[365102566,1749466269441,-1000.0,0.00024658,2]
[365102567,1749466269451,-1000.0,0.00024658,2]
[365102568,1749466269461,-1000.0,0.00024658,2]
[365102569,1749466269471,-1000.0,0.00024658,2]
[365102570,1749466269481,-994.27487044,0.00024658,2]
[365102571,1749466269491,-500.0,0.00024673,2]
[365102572,1749466269501,-7000.0,0.000247,2]
[365102573,1749466269511,-2132.84613001,0.00024712,2]
[365102574,1749466269521,-1000.0,0.00024778,2]
[365102575,1749466269531,-1000.0,0.00024778,2]
[365102576,1749466269541,-1000.0,0.00024778,2]
[365102577,1749466269551,-1000.0,0.00024778,2]
[365102578,1749466269566,-608949.930913,0.000248,2]
[365102579,1749466269576,-159.86485766,0.00024873,2]
[365102580,1749466269586,-601869.481926,0.000249,2]
[365102581,1749466269597,-1000.0,0.00024915,2]
[365102582,1749466269607,-1000.0,0.00024915,2]
[365102583,1749466269619,-1000.0,0.00024915,2]
[365102584,1749466269629,-1000.0,0.00024915,2]
[365102585,1749466269641,-300.0,0.00024932,2]
[365102586,1749466269652,-667.76561198,0.00025,120]
[365102587,1749466269662,-150.0,0.00025,2]
[365102588,1749466269672,-150.0,0.00025,2]
[365102589,1749466269682,-150.0,0.00025,2]
[365102590,1749466269693,-150.0,0.00025,2]
[365102591,1749466269703,-150.0,0.00025,2]
[365102592,1749466269712,-150.0,0.00025,2]
[365102593,1749466269722,-150.0,0.00025,2]
[365102594,1749466269732,-150.0,0.00025,2]
[365102595,1749466269742,-150.0,0.00025,2]
[365102596,1749466269752,-150.0,0.00025,2]
[365102597,1749466269762,-150.0,0.00025,2]
[365102598,1749466269772,-222.154,0.00025,2]
[365102599,1749466269782,-757.43573207,0.00025,26]
[365102600,1749466269792,-4000.0,0.00025,4]
[365102601,1749466269801,-1000.0,0.00025052,2]
[365102602,1749466269810,-1000.0,0.00025052,2]
[365102603,1749466269819,-1000.0,0.00025052,2]
[365102604,1749466269828,-1000.0,0.00025052,2]
[365102605,1749466269837,-1088.0,0.0002507,120]
[365102606,1749466269847,-1000.0,0.00025176,2]
[365102607,1749466269856,-280.0,0.000253,10]
[365102608,1749466269866,-1753.0,0.00025372,2]
[365102609,1749466269876,-562.57,0.00025478,2]
[365102610,1749466269885,-300.0,0.00025479,2]
[365102611,1749466269895,-2131.868,0.00025677,2]
[365102612,1749466269904,-150.0,0.00025754,2]
[365102613,1749466269914,-500.0,0.00025856,120]
[365102614,1749466269923,-2000.0,0.00025856,60]
[365102615,1749466269933,-239.84119403,0.00025919,2]
[365102616,1749466269942,-174.61919141,0.00025919,2]
[365102617,1749466269952,-1075.369,0.00025921,2]
[365102618,1749466269964,-7000.0,0.0002595,2]
[365102619,1749466269974,-1800.0,0.00026,27]
[365102620,1749466269983,-2000.0,0.00026,120]
[365102621,1749466269994,-4000.0,0.00026,4]
[365102622,1749466270005,-500.0,0.00026014,120]
[365102623,1749466270016,-500.0,0.00026023,120]
[365102624,1749466270025,-300.0,0.00026027,2]
[365102625,1749466270034,-1077.88622947,0.00026042,2]
[365102626,1749466270044,-1333.0,0.00026137,120]
[365102627,1749466270053,-2000.0,0.000263,2]
[365102628,1749466270062,-346.28,0.000264,14]
[365102629,1749466270072,-346.28,0.000264,14]
[365102630,1749466270081,-346.28,0.000264,14]
[365102631,1749466270092,-346.33,0.000264,14]
[365102632,1749466270102,-346.3274,0.000264,14]
[365102633,1749466270111,-300.0,0.00026575,2]
[365102634,1749466270120,-167.0,0.00026658,2]
[365102635,1749466270130,-370.78,0.00026676,2]
[365102636,1749466270141,-346.28,0.000267,14]
[365102637,1749466270150,-1397.85,0.00026755,2]
[365102638,1749466270159,-500.0,0.00026808,2]
[365102639,1749466270169,-562.57,0.00026848,2]
[365102640,1749466270178,-640.0,0.00026889,120]
[365102641,1749466270188,-4000.0,0.00027,4]
[365102642,1749466270198,-500.36213542,0.00027,2]
[365102643,1749466270207,-833.29909032,0.00027,3]
[365102644,1749466270216,-1800.0,0.00027,28]
[365102645,1749466270226,-833.29909032,0.00027,3]
[365102646,1749466270235,-1908.04,0.000271,31]
[365102647,1749466270245,-1908.04,0.000271,31]
[365102648,1749466270254,-1908.04,0.000271,31]
[365102649,1749466270263,-1908.04,0.000271,31]
[365102650,1749466270272,-1908.04,0.000271,31]
[365102651,1749466270282,-1908.04,0.000271,31]
[365102652,1749466270291,-1908.04,0.000271,31]
[365102653,1749466270300,-1908.04,0.000271,31]
[365102654,1749466270310,-1908.04,0.000271,31]
[365102655,1749466270319,-1908.04,0.000271,31]
[365102656,1749466270328,-1908.04,0.000271,31]
[365102657,1749466270337,-1908.04,0.000271,31]
[365102658,1749466270347,-1908.04,0.000271,31]
[365102659,1749466270356,-1908.04,0.000271,31]
[365102660,1749466270365,-1908.04,0.000271,31]
[365102661,1749466270375,-1908.04,0.000271,31]
[365102662,1749466270385,-1908.04,0.000271,31]
[365102663,1749466270395,-1908.04,0.000271,31]
[365102664,1749466270406,-1908.04,0.000271,31]
[365102665,1749466270415,-1908.04,0.000271,31]
[365102666,1749466270425,-1908.04,0.000271,31]
[365102667,1749466270435,-1908.04,0.000271,31]
[365102668,1749466270445,-1908.04,0.000271,31]
[365102669,1749466270454,-257.78,0.00027123,2]
[365102670,1749466270464,-153.0,0.00027123,2]
[365102671,1749466270473,-153.0,0.00027123,2]
[365102672,1749466270482,-645.0,0.00027123,2]
[365102673,1749466270491,-645.0,0.00027123,2]
[365102674,1749466270500,-645.0,0.00027123,2]
[365102675,1749466270510,-645.0,0.00027123,2]
[365102676,1749466270518,-645.0,0.00027123,2]
[365102677,1749466270528,-645.0,0.00027123,2]
[365102678,1749466270537,-645.0,0.00027123,2]
[365102679,1749466270546,-645.0,0.00027123,2]
[365102680,1749466270559,-645.0,0.00027123,2]
[365102681,1749466270569,-645.0,0.00027123,2]
[365102682,1749466270577,-645.0,0.00027123,2]
[365102683,1749466270587,-645.0,0.00027123,2]
[365102684,1749466270597,-645.0,0.00027123,2]
[365102685,1749466270605,-645.0,0.00027123,2]
[365102686,1749466270616,-645.0,0.00027123,2]
[365102687,1749466270625,-645.0,0.00027123,2]
[365102688,1749466270634,-645.0,0.00027123,2]
[365102689,1749466270643,-645.0,0.00027123,2]
[365102690,1749466270653,-645.0,0.00027123,2]
[365102691,1749466270662,-645.0,0.00027123,2]
[365102692,1749466270672,-645.0,0.00027123,2]
[365102693,1749466270682,-645.0,0.00027123,2]
[365102694,1749466270691,-645.0,0.00027123,2]
[365102695,1749466270701,-645.0,0.00027123,2]
[365102696,1749466270710,-645.0,0.00027123,2]
[365102697,1749466270719,-645.0,0.00027123,2]
[365102698,1749466270729,-645.0,0.00027123,2]
[365102699,1749466270739,-645.0,0.00027123,2]
[365102700,1749466270748,-645.0,0.00027123,2]
[365102701,1749466270757,-645.0,0.00027123,2]
[365102702,1749466270767,-645.0,0.00027123,2]
[365102703,1749466270776,-645.0,0.00027123,2]
[365102704,1749466270786,-645.0,0.00027123,2]
[365102705,1749466270795,-645.0,0.00027123,2]
[365102706,1749466270804,-645.0,0.00027123,2]
[365102707,1749466270813,-645.0,0.00027123,2]
[365102708,1749466270822,-645.0,0.00027123,2]
[365102709,1749466270832,-645.0,0.00027123,2]
[365102710,1749466270843,-645.0,0.00027123,2]
[365102711,1749466270854,-645.0,0.00027123,2]
[365102712,1749466270863,-645.0,0.00027123,2]
[365102713,1749466270873,-645.0,0.00027123,2]
[365102714,1749466270882,-645.0,0.00027123,2]
[365102715,1749466270892,-645.0,0.00027123,2]
[365102716,1749466270901,-645.0,0.00027123,2]
[365102717,1749466270911,-645.0,0.00027123,2]
[365102718,1749466270921,-645.0,0.00027123,2]
[365102719,1749466270932,-645.0,0.00027123,2]
[365102720,1749466270942,-645.0,0.00027123,2]
[365102721,1749466270952,-645.0,0.00027123,2]
[365102722,1749466270962,-645.0,0.00027123,2]
[365102723,1749466270971,-645.0,0.00027123,2]
[365102724,1749466270981,-645.0,0.00027123,2]
[365102725,1749466270990,-645.0,0.00027123,2]
[365102726,1749466270999,-645.0,0.00027123,2]
[365102727,1749466271009,-645.0,0.00027123,2]
[365102728,1749466271019,-645.0,0.00027123,2]
[365102729,1749466271028,-645.0,0.00027123,2]
[365102730,1749466271038,-645.0,0.00027123,2]
[365102731,1749466271048,-645.0,0.00027123,2]
[365102732,1749466271057,-645.0,0.00027123,2]
[365102733,1749466271066,-645.0,0.00027123,2]
[365102734,1749466271075,-645.0,0.00027123,2]
[365102735,1749466271085,-645.0,0.00027123,2]
[365102736,1749466271094,-645.0,0.00027123,2]
[365102737,1749466271103,-645.0,0.00027123,2]
[365102738,1749466271112,-645.0,0.00027123,2]
[365102739,1749466271122,-645.0,0.00027123,2]
[365102740,1749466271131,-645.0,0.00027123,2]
[365102741,1749466271140,-645.0,0.00027123,2]
[365102742,1749466271150,-645.0,0.00027123,2]
[365102743,1749466271159,-645.0,0.00027123,2]
[365102744,1749466271169,-645.0,0.00027123,2]
[365102745,1749466271178,-645.0,0.00027123,2]
[365102746,1749466271187,-645.0,0.00027123,2]
[365102747,1749466271197,-645.0,0.00027123,2]
[365102748,1749466271207,-645.0,0.00027123,2]
[365102749,1749466271216,-645.0,0.00027123,2]
[365102750,1749466271225,-645.0,0.00027123,2]
[365102751,1749466271235,-645.0,0.00027123,2]
[365102752,1749466271244,-645.0,0.00027123,2]
[365102753,1749466271253,-645.0,0.00027123,2]
[365102754,1749466271262,-645.0,0.00027123,2]
[365102755,1749466271271,-645.0,0.00027123,2]
[365102756,1749466271281,-645.0,0.00027123,2]
[365102757,1749466271290,-645.0,0.00027123,2]
[365102758,1749466271299,-645.0,0.00027123,2]
[365102759,1749466271308,-645.0,0.00027123,2]
[365102760,1749466271317,-645.0,0.00027123,2]
[365102761,1749466271327,-645.0,0.00027123,2]
[365102762,1749466271336,-645.0,0.00027123,2]
[365102763,1749466271345,-645.0,0.00027123,2]
[365102764,1749466271354,-645.0,0.00027123,2]
[365102765,1749466271364,-645.0,0.00027123,2]
[365102766,1749466271373,-645.0,0.00027123,2]
[365102767,1749466271382,-645.0,0.00027123,2]
[365102768,1749466271392,-645.0,0.00027123,2]
[365102769,1749466271401,-328.0,0.00027123,2]
[365102770,1749466271410,-328.0,0.00027123,2]
[365102771,1749466271419,-328.0,0.00027123,2]